[Event "*** SCC Grand Prix: Titled Tuesday Blitz"]
[Site "Chess.com"]
[Date "2020.06.09"]
[Round "6"]
[White "NM2019"]
[Black "esrosenberg"]
[Result "0-1"]
[WhiteElo "2018"]
[BlackElo "2215"]
[TimeControl "180+1"]
[EndTime "10:07:10 PDT"]
[Termination "esrosenberg won by checkmate"]

1. c4 {[%clk 0:02:21.9]} 1... e5 {[%clk 0:02:58.9]} 2. Nc3 {[%clk 0:02:21.2]}
2... Bb4 {[%clk 0:02:57.9]} 3. Nd5 {[%clk 0:02:21.1]} 3... Be7 {[%clk
0:02:57.9]} 4. Nxe7 {[%clk 0:02:21]} 4... Qxe7 {[%clk 0:02:51.6]} 5. d4 {[%clk
0:02:19.8]} 5... exd4 {[%clk 0:02:47.5]} 6. Qxd4 {[%clk 0:02:19.8]} 6... Nf6
{[%clk 0:02:48]} 7. Bg5 {[%clk 0:02:19.3]} 7... Nc6 {[%clk 0:02:46.9]} 8. Qc3
{[%clk 0:02:16.5]} 8... Ne5 {[%clk 0:02:20]} 9. Nf3 {[%clk 0:02:09.2]} 9... d6
{[%clk 0:02:09.2]} 10. O-O-O {[%clk 0:02:03]} 10... Bf5 {[%clk 0:01:53.1]} 11.
c5 {[%clk 0:01:52.6]} 11... O-O {[%clk 0:01:43.8]} 12. Nxe5 {[%clk 0:01:48.8]}
12... dxe5 {[%clk 0:01:38.6]} 13. f3 {[%clk 0:01:47.9]} 13... h6 {[%clk
0:01:27.6]} 14. Bxf6 {[%clk 0:01:46.9]} 14... Qxf6 {[%clk 0:01:27.1]} 15. e4
{[%clk 0:01:47.4]} 15... Be6 {[%clk 0:01:15.1]} 16. Kb1 {[%clk 0:01:46.1]} 16...
Rfe8 {[%clk 0:01:06.8]} 17. Bc4 {[%clk 0:01:45.7]} 17... Rad8 {[%clk 0:00:54.1]}
18. c6 {[%clk 0:01:43.9]} 18... bxc6 {[%clk 0:00:48.7]} 19. Bb3 {[%clk
0:01:28.9]} 19... Bxb3 {[%clk 0:00:43.6]} 20. axb3 {[%clk 0:01:27.1]} 20... Rd4
{[%clk 0:00:42.4]} 21. Rc1 {[%clk 0:01:22.7]} 21... Re6 {[%clk 0:00:36.1]} 22.
Qa5 {[%clk 0:01:14.8]} 22... Qg5 {[%clk 0:00:26.5]} 23. Rc2 {[%clk 0:01:10.1]}
23... Qe3 {[%clk 0:00:25.2]} 24. Rc3 {[%clk 0:00:41.4]} 24... Qe2 {[%clk
0:00:15.8]} 25. Rc2 {[%clk 0:00:41.1]} 25... Rd1+ {[%clk 0:00:14.4]} 26. Rxd1
{[%clk 0:00:38.5]} 26... Qxd1+ {[%clk 0:00:15.3]} 27. Rc1 {[%clk 0:00:38.9]}
27... Qd3+ {[%clk 0:00:15.1]} 28. Ka2 {[%clk 0:00:36.9]} 28... c5 {[%clk
0:00:15.2]} 29. Rc4 {[%clk 0:00:30.2]} 29... Rb6 {[%clk 0:00:11.5]} 30. Rc3
{[%clk 0:00:27.6]} 30... Qe2 {[%clk 0:00:08.3]} 31. Rc4 {[%clk 0:00:18.4]} 31...
Qxg2 {[%clk 0:00:06.6]} 32. Qxa7 {[%clk 0:00:16.8]} 32... Qxf3 {[%clk
0:00:05.2]} 33. Rc3 {[%clk 0:00:15.3]} 33... Qxe4 {[%clk 0:00:04.7]} 34. Rxc5
{[%clk 0:00:14]} 34... Qd3 {[%clk 0:00:02.2]} 35. Rc4 {[%clk 0:00:12]} 35...
Qxb3+ {[%clk 0:00:01.5]} 36. Ka1 {[%clk 0:00:10.7]} 36... Qxb2# {[%clk
0:00:02.4]} 0-1

[Event "*** SCC Grand Prix: Titled Tuesday Blitz"]
[Site "Chess.com"]
[Date "2020.06.09"]
[Round "6"]
[White "mbojan"]
[Black "Shota_Azaladze"]
[Result "1-0"]
[WhiteElo "2645"]
[BlackElo "2784"]
[TimeControl "180+1"]
[EndTime "10:07:14 PDT"]
[Termination "mbojan won by checkmate"]

1. e4 {[%clk 0:03:00.9]} 1... g6 {[%clk 0:02:59.2]} 2. d4 {[%clk 0:03:00.9]}
2... Bg7 {[%clk 0:03:00.1]} 3. Nc3 {[%clk 0:03:01.7]} 3... c6 {[%clk 0:03:00.5]}
4. Nf3 {[%clk 0:03:00.3]} 4... d6 {[%clk 0:03:00.5]} 5. Be2 {[%clk 0:02:59]}
5... Nd7 {[%clk 0:03:00.5]} 6. O-O {[%clk 0:02:59.2]} 6... e5 {[%clk 0:03:01.1]}
7. Re1 {[%clk 0:02:57.5]} 7... Ngf6 {[%clk 0:03:00.9]} 8. h3 {[%clk 0:02:57.4]}
8... O-O {[%clk 0:03:00.9]} 9. Bf1 {[%clk 0:02:55.7]} 9... Qc7 {[%clk
0:03:00.5]} 10. b3 {[%clk 0:02:54.3]} 10... Re8 {[%clk 0:02:58.3]} 11. g3 {[%clk
0:02:52.6]} 11... b5 {[%clk 0:02:58]} 12. a3 {[%clk 0:02:50.5]} 12... a6 {[%clk
0:02:55.9]} 13. Bb2 {[%clk 0:02:50.2]} 13... Bb7 {[%clk 0:02:53.1]} 14. Bg2
{[%clk 0:02:50.1]} 14... c5 {[%clk 0:02:40.5]} 15. d5 {[%clk 0:01:49.2]} 15...
b4 {[%clk 0:02:38.2]} 16. Nb1 {[%clk 0:01:38.3]} 16... a5 {[%clk 0:02:37.6]} 17.
Nbd2 {[%clk 0:01:36.5]} 17... Nb6 {[%clk 0:02:37.2]} 18. Bf1 {[%clk 0:01:36.3]}
18... Ba6 {[%clk 0:02:31.3]} 19. Bxa6 {[%clk 0:01:34]} 19... Rxa6 {[%clk
0:02:32.2]} 20. Qe2 {[%clk 0:01:33.7]} 20... Rea8 {[%clk 0:02:31.3]} 21. Nc4
{[%clk 0:01:31.3]} 21... Nxc4 {[%clk 0:02:30.4]} 22. Qxc4 {[%clk 0:01:32.2]}
22... Nd7 {[%clk 0:02:17.7]} 23. Ra2 {[%clk 0:00:43.4]} 23... Nb6 {[%clk
0:02:16]} 24. Qb5 {[%clk 0:00:42.3]} 24... Bh6 {[%clk 0:02:09.3]} 25. Rea1
{[%clk 0:00:38.6]} 25... bxa3 {[%clk 0:02:03.7]} 26. Rxa3 {[%clk 0:00:37.7]}
26... a4 {[%clk 0:02:03.8]} 27. bxa4 {[%clk 0:00:34.4]} 27... Ra5 {[%clk
0:02:03.9]} 28. Qb3 {[%clk 0:00:34.3]} 28... c4 {[%clk 0:01:25.4]} 29. Qb4
{[%clk 0:00:33.9]} 29... Nd7 {[%clk 0:01:25.4]} 30. Bc3 {[%clk 0:00:20.9]} 30...
R5a6 {[%clk 0:01:24.9]} 31. a5 {[%clk 0:00:20.6]} 31... Qc8 {[%clk 0:01:18.5]}
32. Kg2 {[%clk 0:00:17.1]} 32... f5 {[%clk 0:01:17.6]} 33. exf5 {[%clk
0:00:16.6]} 33... gxf5 {[%clk 0:01:18.5]} 34. Nh4 {[%clk 0:00:16.6]} 34... Nf6
{[%clk 0:01:12.2]} 35. Rd1 {[%clk 0:00:13.6]} 35... Ne4 {[%clk 0:01:11.3]} 36.
Be1 {[%clk 0:00:11.6]} 36... c3 {[%clk 0:01:01.7]} 37. Qb5 {[%clk 0:00:05.3]}
37... Bg5 {[%clk 0:00:55]} 38. Nf3 {[%clk 0:00:03.7]} 38... Bd2 {[%clk 0:00:53]}
39. Bxd2 {[%clk 0:00:03.3]} 39... cxd2 {[%clk 0:00:53.9]} 40. Nxd2 {[%clk
0:00:03.4]} 40... Qxc2 {[%clk 0:00:53.9]} 41. Nxe4 {[%clk 0:00:03.1]} 41... Qxd1
{[%clk 0:00:53.6]} 42. Nf6+ {[%clk 0:00:02.5]} 42... Kf7 {[%clk 0:00:52.9]} 43.
Qd7+ {[%clk 0:00:02.7]} 43... Kxf6 {[%clk 0:00:53.2]} 44. Qe6+ {[%clk
0:00:03.1]} 44... Kg7 {[%clk 0:00:53.7]} 45. Qe7+ {[%clk 0:00:03.6]} 45... Kg8
{[%clk 0:00:46.4]} 46. Qe6+ {[%clk 0:00:03.8]} 46... Kf8 {[%clk 0:00:32.4]} 47.
Qxf5+ {[%clk 0:00:04]} 47... Kg7 {[%clk 0:00:31.6]} 48. Qg5+ {[%clk 0:00:03.5]}
48... Kf7 {[%clk 0:00:31.4]} 49. Rf3+ {[%clk 0:00:03.2]} 49... Ke8 {[%clk
0:00:31.5]} 50. Qg8+ {[%clk 0:00:03]} 50... Kd7 {[%clk 0:00:31.8]} 51. Rf7#
{[%clk 0:00:03.3]} 1-0

[Event "*** SCC Grand Prix: Titled Tuesday Blitz"]
[Site "Chess.com"]
[Date "2020.06.09"]
[Round "6"]
[White "Nbk90"]
[Black "bazar-wokzal"]
[Result "1-0"]
[WhiteElo "2544"]
[BlackElo "2383"]
[TimeControl "180+1"]
[EndTime "10:07:14 PDT"]
[Termination "Nbk90 won on time"]

1. e4 {[%clk 0:03:00.9]} 1... Nc6 {[%clk 0:02:59]} 2. Nf3 {[%clk 0:02:59]} 2...
d5 {[%clk 0:02:59]} 3. exd5 {[%clk 0:02:58.8]} 3... Qxd5 {[%clk 0:02:59.6]} 4.
Nc3 {[%clk 0:02:59.1]} 4... Qa5 {[%clk 0:02:59.4]} 5. d4 {[%clk 0:02:57]} 5...
Bg4 {[%clk 0:02:59]} 6. Bb5 {[%clk 0:02:55.2]} 6... O-O-O {[%clk 0:02:53.8]} 7.
Bxc6 {[%clk 0:02:53.4]} 7... bxc6 {[%clk 0:02:53.1]} 8. Qe2 {[%clk 0:02:49.5]}
8... Kb7 {[%clk 0:02:51.4]} 9. Bd2 {[%clk 0:02:34.1]} 9... Qh5 {[%clk
0:02:41.4]} 10. O-O-O {[%clk 0:02:26.9]} 10... e6 {[%clk 0:02:37.6]} 11. Qc4
{[%clk 0:02:12.7]} 11... Bxf3 {[%clk 0:02:36.4]} 12. gxf3 {[%clk 0:02:12.3]}
12... Qxf3 {[%clk 0:02:34.4]} 13. Be3 {[%clk 0:02:09.4]} 13... Ne7 {[%clk
0:02:26]} 14. Rhe1 {[%clk 0:02:00.6]} 14... Nd5 {[%clk 0:02:20.1]} 15. Rd3
{[%clk 0:01:53.6]} 15... Nb6 {[%clk 0:01:55.5]} 16. Qb3 {[%clk 0:01:53.2]} 16...
Qg2 {[%clk 0:01:48.9]} 17. a4 {[%clk 0:01:40.8]} 17... Ka8 {[%clk 0:01:41.4]}
18. a5 {[%clk 0:01:36.3]} 18... Nd5 {[%clk 0:01:37.9]} 19. Qa4 {[%clk
0:01:29.7]} 19... Nb4 {[%clk 0:01:31.5]} 20. Rd2 {[%clk 0:01:20.3]} 20... Qxh2
{[%clk 0:01:27.2]} 21. Ne4 {[%clk 0:01:13.5]} 21... Rb8 {[%clk 0:01:20]} 22. c3
{[%clk 0:01:10.8]} 22... Qg2 {[%clk 0:01:16.4]} 23. f3 {[%clk 0:01:04.5]} 23...
Qxf3 {[%clk 0:01:15.2]} 24. Ng5 {[%clk 0:00:59.7]} 24... Qg3 {[%clk 0:01:14.8]}
25. Ree2 {[%clk 0:00:38.6]} 25... Rb5 {[%clk 0:00:38.1]} 26. Nxf7 {[%clk
0:00:32.3]} 26... Rg8 {[%clk 0:00:37.4]} 27. Ne5 {[%clk 0:00:27.5]} 27... Bd6
{[%clk 0:00:21.9]} 28. Nxc6 {[%clk 0:00:27.1]} 28... Nxc6 {[%clk 0:00:18.6]} 29.
Qxb5 {[%clk 0:00:26.8]} 29... Ne7 {[%clk 0:00:17.3]} 30. a6 {[%clk 0:00:24.4]}
30... Rb8 {[%clk 0:00:17]} 31. Qd3 {[%clk 0:00:24.4]} 31... h5 {[%clk
0:00:15.1]} 32. Qe4+ {[%clk 0:00:23.1]} 32... c6 {[%clk 0:00:09.1]} 33. Qxe6
{[%clk 0:00:21.8]} 33... h4 {[%clk 0:00:09.3]} 34. Rg2 {[%clk 0:00:21]} 34...
Qe1+ {[%clk 0:00:08.6]} 35. Kc2 {[%clk 0:00:21.3]} 35... Nc8 {[%clk 0:00:06.8]}
36. Qe4 {[%clk 0:00:19.8]} 36... Rb6 {[%clk 0:00:05.5]} 37. Qg4 {[%clk
0:00:18.5]} 37... Kb8 {[%clk 0:00:04.6]} 38. Rge2 {[%clk 0:00:18.5]} 38... Qa1
{[%clk 0:00:03]} 39. Kd3 {[%clk 0:00:16.8]} 39... Qxa6+ {[%clk 0:00:02.6]} 40.
Ke4 {[%clk 0:00:16.4]} 40... Qc4 {[%clk 0:00:02.2]} 41. Bf4 {[%clk 0:00:16.3]}
1-0

[Event "*** SCC Grand Prix: Titled Tuesday Blitz"]
[Site "Chess.com"]
[Date "2020.06.09"]
[Round "6"]
[White "Grieve72"]
[Black "dosto07"]
[Result "0-1"]
[WhiteElo "2384"]
[BlackElo "2149"]
[TimeControl "180+1"]
[EndTime "10:07:14 PDT"]
[Termination "dosto07 won on time"]

1. e4 {[%clk 0:03:00.9]} 1... e5 {[%clk 0:02:58.7]} 2. Nf3 {[%clk 0:03:01.1]}
2... Nc6 {[%clk 0:02:59.1]} 3. Bc4 {[%clk 0:03:01]} 3... Bc5 {[%clk 0:02:57.7]}
4. O-O {[%clk 0:03:00.8]} 4... d6 {[%clk 0:02:55.2]} 5. c3 {[%clk 0:02:55.7]}
5... Nf6 {[%clk 0:02:54.7]} 6. d3 {[%clk 0:02:55.3]} 6... a6 {[%clk 0:02:48.6]}
7. a4 {[%clk 0:02:54.7]} 7... h6 {[%clk 0:02:45.5]} 8. a5 {[%clk 0:02:42.9]}
8... O-O {[%clk 0:02:44.3]} 9. h3 {[%clk 0:02:42.2]} 9... Re8 {[%clk 0:02:44.2]}
10. Re1 {[%clk 0:02:41.5]} 10... Ba7 {[%clk 0:02:39.9]} 11. Nbd2 {[%clk
0:02:36.7]} 11... Be6 {[%clk 0:02:39.1]} 12. Bxe6 {[%clk 0:02:34.3]} 12... Rxe6
{[%clk 0:02:37.9]} 13. Nf1 {[%clk 0:02:31.2]} 13... d5 {[%clk 0:02:35.9]} 14.
exd5 {[%clk 0:02:16]} 14... Qxd5 {[%clk 0:02:28.6]} 15. Be3 {[%clk 0:02:13.6]}
15... Rd8 {[%clk 0:01:57.8]} 16. Bxa7 {[%clk 0:02:12.5]} 16... Nxa7 {[%clk
0:01:57.4]} 17. d4 {[%clk 0:01:58.1]} 17... exd4 {[%clk 0:01:49.1]} 18. Nxd4
{[%clk 0:01:37]} 18... Rxe1 {[%clk 0:01:36.5]} 19. Qxe1 {[%clk 0:01:37.9]} 19...
c5 {[%clk 0:01:32.1]} 20. Ne3 {[%clk 0:01:37.1]} 20... Qd6 {[%clk 0:01:18]} 21.
Nc4 {[%clk 0:01:23.6]} 21... Qf4 {[%clk 0:01:07.5]} 22. g3 {[%clk 0:01:09.6]}
22... Qg5 {[%clk 0:00:57.8]} 23. Nf3 {[%clk 0:00:55.7]} 23... Qd5 {[%clk
0:00:52.7]} 24. Qe2 {[%clk 0:00:38.9]} 24... Re8 {[%clk 0:00:50.7]} 25. Ne3
{[%clk 0:00:38.5]} 25... Qe6 {[%clk 0:00:46.3]} 26. Qf1 {[%clk 0:00:20.6]} 26...
Nc6 {[%clk 0:00:43.9]} 27. Re1 {[%clk 0:00:20.4]} 27... Qc8 {[%clk 0:00:38.2]}
28. Nc4 {[%clk 0:00:19.2]} 28... Qc7 {[%clk 0:00:35.9]} 29. Rxe8+ {[%clk
0:00:16.4]} 29... Nxe8 {[%clk 0:00:34.8]} 30. Qe1 {[%clk 0:00:15.6]} 30... Nf6
{[%clk 0:00:34.2]} 31. b4 {[%clk 0:00:09.9]} 31... cxb4 {[%clk 0:00:33.5]} 32.
cxb4 {[%clk 0:00:10.8]} 32... g6 {[%clk 0:00:32.1]} 33. Nb6 {[%clk 0:00:09.1]}
33... h5 {[%clk 0:00:26]} 34. Qc3 {[%clk 0:00:09.2]} 34... Qd6 {[%clk
0:00:21.6]} 35. Ng5 {[%clk 0:00:06]} 35... Qd1+ {[%clk 0:00:17.1]} 36. Kg2
{[%clk 0:00:05.3]} 36... Qd6 {[%clk 0:00:15.6]} 37. Nc8 {[%clk 0:00:03.7]} 37...
Qe5 {[%clk 0:00:07.4]} 38. Qxe5 {[%clk 0:00:02.6]} 38... Nxe5 {[%clk 0:00:07.4]}
39. Nd6 {[%clk 0:00:03.5]} 39... Nfd7 {[%clk 0:00:04.3]} 40. Nxb7 {[%clk
0:00:02.9]} 40... Nc6 {[%clk 0:00:03.5]} 41. Nc5 {[%clk 0:00:01.7]} 41... Nxb4
{[%clk 0:00:03.4]} 0-1

[Event "*** SCC Grand Prix: Titled Tuesday Blitz"]
[Site "Chess.com"]
[Date "2020.06.09"]
[Round "6"]
[White "pastouche06"]
[Black "MarcoRiehle"]
[Result "1-0"]
[WhiteElo "2500"]
[BlackElo "2630"]
[TimeControl "180+1"]
[EndTime "10:07:15 PDT"]
[Termination "pastouche06 won by resignation"]

1. d4 {[%clk 0:02:10.4]} 1... d5 {[%clk 0:02:50.6]} 2. c4 {[%clk 0:02:09.9]}
2... e6 {[%clk 0:02:48.4]} 3. Nc3 {[%clk 0:02:08.8]} 3... c5 {[%clk 0:02:48.9]}
4. cxd5 {[%clk 0:02:08.4]} 4... cxd4 {[%clk 0:02:48]} 5. Qa4+ {[%clk 0:02:08]}
5... Bd7 {[%clk 0:02:48]} 6. Qxd4 {[%clk 0:02:08.3]} 6... exd5 {[%clk
0:02:48.9]} 7. Qxd5 {[%clk 0:02:09]} 7... Nf6 {[%clk 0:02:49.3]} 8. Qd1 {[%clk
0:02:07.9]} 8... Nc6 {[%clk 0:02:49.5]} 9. Nf3 {[%clk 0:02:08]} 9... Bc5 {[%clk
0:02:50.1]} 10. e3 {[%clk 0:02:07.6]} 10... Qe7 {[%clk 0:02:50.6]} 11. Be2
{[%clk 0:02:06]} 11... O-O-O {[%clk 0:02:51.1]} 12. b4 {[%clk 0:01:50.4]} 12...
Bxb4 {[%clk 0:02:48.3]} 13. Qb3 {[%clk 0:01:50.5]} 13... Ne4 {[%clk 0:02:30.1]}
14. Bb2 {[%clk 0:01:45.4]} 14... Be6 {[%clk 0:02:27.1]} 15. Bc4 {[%clk
0:01:44.3]} 15... Bxc4 {[%clk 0:02:14.6]} 16. Qxc4 {[%clk 0:01:44]} 16... Nxc3
{[%clk 0:02:14]} 17. Bxc3 {[%clk 0:01:44.9]} 17... Bxc3+ {[%clk 0:02:06.8]} 18.
Qxc3 {[%clk 0:01:45.8]} 18... Qb4 {[%clk 0:02:06.5]} 19. Rc1 {[%clk 0:01:45.6]}
19... Qxc3+ {[%clk 0:01:53.3]} 20. Rxc3 {[%clk 0:01:46.5]} 20... Rd5 {[%clk
0:01:51.3]} 21. Nd4 {[%clk 0:01:37]} 21... Kc7 {[%clk 0:01:49.4]} 22. Ke2 {[%clk
0:01:20.5]} 22... Rhd8 {[%clk 0:01:39.6]} 23. Rhc1 {[%clk 0:01:17.9]} 23... R8d6
{[%clk 0:01:39.2]} 24. Rc5 {[%clk 0:01:09.8]} 24... Rxc5 {[%clk 0:01:34.9]} 25.
Rxc5 {[%clk 0:01:10.7]} 25... Kb6 {[%clk 0:01:31.2]} 26. Rb5+ {[%clk 0:01:09]}
26... Ka6 {[%clk 0:01:31.4]} 27. Rg5 {[%clk 0:01:08.3]} 27... Nxd4+ {[%clk
0:01:20.5]} 28. exd4 {[%clk 0:01:07.9]} 28... g6 {[%clk 0:01:19.4]} 29. Kd3
{[%clk 0:01:01.8]} 29... Kb6 {[%clk 0:01:19.1]} 30. Re5 {[%clk 0:01:00]} 30...
Kc7 {[%clk 0:01:18.1]} 31. Re8 {[%clk 0:00:57.1]} 31... Kd7 {[%clk 0:01:16]} 32.
Rb8 {[%clk 0:00:53.3]} 32... Rb6 {[%clk 0:01:13.9]} 33. Kc3 {[%clk 0:00:48.4]}
33... h5 {[%clk 0:01:12.9]} 34. a4 {[%clk 0:00:46.2]} 34... h4 {[%clk
0:01:08.4]} 35. h3 {[%clk 0:00:43.4]} 35... g5 {[%clk 0:01:08.3]} 36. f4 {[%clk
0:00:39.4]} 36... gxf4 {[%clk 0:00:57.7]} 37. Rh8 {[%clk 0:00:39.8]} 37... f3
{[%clk 0:00:50]} 38. gxf3 {[%clk 0:00:40.7]} 38... Rf6 {[%clk 0:00:50]} 39. Rxh4
{[%clk 0:00:41.2]} 39... Rxf3+ {[%clk 0:00:50.5]} 40. Kc4 {[%clk 0:00:41.2]}
40... Kc6 {[%clk 0:00:47.7]} 41. Rh6+ {[%clk 0:00:38.7]} 41... f6 {[%clk
0:00:47.6]} 42. h4 {[%clk 0:00:36.6]} 42... b6 {[%clk 0:00:45.4]} 43. h5 {[%clk
0:00:35.5]} 43... a5 {[%clk 0:00:43.1]} 44. Rg6 {[%clk 0:00:32.6]} 44... Kb7
{[%clk 0:00:37]} 45. h6 {[%clk 0:00:32.1]} 45... Ka6 {[%clk 0:00:37.1]} 46. d5
{[%clk 0:00:29.8]} 46... Rf4+ {[%clk 0:00:32.3]} 47. Kb3 {[%clk 0:00:23]} 47...
Rb4+ {[%clk 0:00:32]} 48. Ka3 {[%clk 0:00:23.1]} 48... Rd4 {[%clk 0:00:32]} 49.
h7 {[%clk 0:00:23.4]} 49... Rh4 {[%clk 0:00:30.9]} 50. Rg7 {[%clk 0:00:23.8]}
50... Rh3+ {[%clk 0:00:29.5]} 51. Kb2 {[%clk 0:00:23.6]} 51... b5 {[%clk
0:00:29.9]} 52. d6 {[%clk 0:00:21.3]} 52... Kb6 {[%clk 0:00:26.5]} 53. axb5
{[%clk 0:00:20.5]} 53... f5 {[%clk 0:00:21.3]} 54. d7 {[%clk 0:00:20.1]} 54...
Kc7 {[%clk 0:00:21.6]} 55. d8=Q+ {[%clk 0:00:20.1]} 55... Kxd8 {[%clk
0:00:20.8]} 56. Rg8+ {[%clk 0:00:20.4]} 1-0

[Event "*** SCC Grand Prix: Titled Tuesday Blitz"]
[Site "Chess.com"]
[Date "2020.06.09"]
[Round "6"]
[White "2007checkmate"]
[Black "Bastiandash"]
[Result "1-0"]
[WhiteElo "2408"]
[BlackElo "2179"]
[TimeControl "180+1"]
[EndTime "10:07:15 PDT"]
[Termination "2007checkmate won by checkmate"]

1. Nc3 {[%clk 0:03:00.9]} 1... d5 {[%clk 0:02:56.5]} 2. d4 {[%clk 0:03:00.8]}
2... Nf6 {[%clk 0:02:55.2]} 3. Bf4 {[%clk 0:03:00.4]} 3... e6 {[%clk 0:02:46.5]}
4. e3 {[%clk 0:03:00.4]} 4... Bd6 {[%clk 0:02:46.7]} 5. Bd3 {[%clk 0:02:59.3]}
5... O-O {[%clk 0:02:44.8]} 6. Nf3 {[%clk 0:02:59.1]} 6... c5 {[%clk 0:02:44.9]}
7. dxc5 {[%clk 0:02:56.8]} 7... Bxf4 {[%clk 0:02:35.1]} 8. exf4 {[%clk 0:02:57]}
8... Qc7 {[%clk 0:02:36]} 9. Ne5 {[%clk 0:02:57.2]} 9... Nbd7 {[%clk 0:02:28.4]}
10. Nxd7 {[%clk 0:02:52.2]} 10... Bxd7 {[%clk 0:02:25.1]} 11. Qf3 {[%clk
0:02:50.7]} 11... Qxc5 {[%clk 0:02:22.8]} 12. g4 {[%clk 0:02:49.6]} 12... d4
{[%clk 0:01:45.6]} 13. Ne4 {[%clk 0:02:26.2]} 13... Nxe4 {[%clk 0:01:44.8]} 14.
Qxe4 {[%clk 0:02:09.3]} 14... g6 {[%clk 0:01:43.1]} 15. Qe5 {[%clk 0:02:07.5]}
15... Qb4+ {[%clk 0:01:30.8]} 16. Ke2 {[%clk 0:02:00.6]} 16... Rac8 {[%clk
0:01:17.2]} 17. Qg5 {[%clk 0:01:46]} 17... Bb5 {[%clk 0:01:14.1]} 18. Qxb5
{[%clk 0:01:35.8]} 18... Qxb5 {[%clk 0:01:12.4]} 19. Bxb5 {[%clk 0:01:35.1]}
19... Rxc2+ {[%clk 0:01:13.3]} 20. Kf3 {[%clk 0:01:31.5]} 20... Rxb2 {[%clk
0:01:12.8]} 21. Rhb1 {[%clk 0:01:30.6]} 21... Rc2 {[%clk 0:01:09.8]} 22. Rc1
{[%clk 0:01:29.3]} 22... Rb2 {[%clk 0:01:09.5]} 23. Bd3 {[%clk 0:01:24.6]} 23...
Rd2 {[%clk 0:01:04.3]} 24. Rd1 {[%clk 0:01:23.6]} 24... Rb2 {[%clk 0:01:04.4]}
25. Rab1 {[%clk 0:01:23.8]} 25... Rxa2 {[%clk 0:01:04.3]} 26. Rxb7 {[%clk
0:01:23.6]} 26... a5 {[%clk 0:01:03.7]} 27. Rc1 {[%clk 0:01:18.7]} 27... Ra3
{[%clk 0:00:58.9]} 28. Ke2 {[%clk 0:01:17.2]} 28... Ra2+ {[%clk 0:00:57.7]} 29.
Rc2 {[%clk 0:01:17.6]} 29... Ra1 {[%clk 0:00:52.4]} 30. Rcc7 {[%clk 0:01:16.9]}
30... Ra2+ {[%clk 0:00:51.3]} 31. Kf1 {[%clk 0:01:15.8]} 31... Rd2 {[%clk
0:00:50]} 32. Bc4 {[%clk 0:01:12.2]} 32... a4 {[%clk 0:00:35.1]} 33. Rxf7 {[%clk
0:01:11]} 33... Rxf7 {[%clk 0:00:28.6]} 34. Bxe6 {[%clk 0:01:11]} 34... a3
{[%clk 0:00:29.5]} 35. Rxf7 {[%clk 0:01:09.9]} 35... d3 {[%clk 0:00:22.3]} 36.
Ra7+ {[%clk 0:00:55.8]} 36... Kh8 {[%clk 0:00:21.1]} 37. g5 {[%clk 0:00:52.6]}
37... h5 {[%clk 0:00:11.5]} 38. Rxa3 {[%clk 0:00:48]} 38... h4 {[%clk
0:00:09.7]} 39. Ra8+ {[%clk 0:00:41.7]} 39... Kh7 {[%clk 0:00:07.9]} 40. Ra7+
{[%clk 0:00:42.6]} 40... Kh8 {[%clk 0:00:07.6]} 41. Kg2 {[%clk 0:00:43.2]} 41...
h3+ {[%clk 0:00:06.5]} 42. Bxh3 {[%clk 0:00:42]} 42... Rb2 {[%clk 0:00:04.6]}
43. Rd7 {[%clk 0:00:41.9]} 43... d2 {[%clk 0:00:05.5]} 44. f5 {[%clk 0:00:42.1]}
44... gxf5 {[%clk 0:00:05.2]} 45. Bxf5 {[%clk 0:00:42.2]} 45... Kg8 {[%clk
0:00:06.1]} 46. h4 {[%clk 0:00:41.4]} 46... Rb5 {[%clk 0:00:03.7]} 47. Be6+
{[%clk 0:00:40.9]} 47... Kf8 {[%clk 0:00:03.4]} 48. Rxd2 {[%clk 0:00:41.8]}
48... Re5 {[%clk 0:00:03.9]} 49. Bg4 {[%clk 0:00:40.9]} 49... Kg7 {[%clk
0:00:04.8]} 50. f4 {[%clk 0:00:40.6]} 50... Re7 {[%clk 0:00:05.7]} 51. f5 {[%clk
0:00:40.8]} 51... Kf8 {[%clk 0:00:06.6]} 52. Rd8+ {[%clk 0:00:39.3]} 52... Kg7
{[%clk 0:00:06.2]} 53. f6+ {[%clk 0:00:39.2]} 53... Kg6 {[%clk 0:00:01.4]} 54.
fxe7 {[%clk 0:00:37.8]} 54... Kh7 {[%clk 0:00:02.1]} 55. e8=Q {[%clk 0:00:35.9]}
55... Kg7 {[%clk 0:00:03]} 56. Rd7# {[%clk 0:00:35.1]} 1-0